bitfinex-derivatives/quotes_ETHF0:USTF0_20250903
["timestamp","ask_amount","ask_price","bid_price","bid_amount"]
[1756869140581,0.7804016,4333.7,4333.6,0.3061]
[1756869140982,0.2911,4333.6,4333.0,0.4227]
[1756869141288,0.2911,4333.4,4333.1,0.3061]
[1756869141594,0.2911,4333.4,4332.7,3.2078]
[1756869141595,1.3105016,4333.3,4332.7,3.5139]
[1756869141786,0.7804016,4333.2,4333.0,0.1166]
[1756869142001,3.2078,4333.7,4333.1,0.3061]
[1756869142192,1.02058173,4333.6,4333.5,0.4227]
[1756869142495,0.78158173,4333.6,4333.5,0.4227]
[1756869142886,0.78158173,4333.6,4333.5,41.2227]
[1756869143285,0.78158173,4333.6,4333.5,45.2227]
[1756869144589,0.78158173,4333.6,4333.5,41.2227]
[1756869144992,0.78158173,4333.6,4333.5,45.2227]
[1756869147407,0.78158173,4333.6,4333.5,41.2227]
[1756869148110,0.78158173,4333.6,4333.5,0.4227]
[1756869150207,0.78158173,4333.6,4333.5,0.3061]
[1756869150404,1.07268173,4333.6,4333.5,0.3061]
[1756869150609,2.30564182,4333.6,4333.0,0.4227]
[1756869150805,0.2911,4333.4,4333.0,0.4227]
[1756869151110,1.52406009,4333.2,4332.7,3.2078]
[1756869151307,0.78158173,4333.1,4332.7,3.2078]
[1756869151509,0.78158173,4333.0,4332.7,3.2078]
[1756869151808,0.78158173,4332.9,4332.8,0.3061]
[1756869152804,0.2911,4332.8,4332.7,3.2078]
[1756869153009,0.78158173,4332.8,4332.7,3.5139]
[1756869153919,1.07268173,4332.8,4332.7,3.2078]
[1756869154318,1.07268173,4332.8,4332.7,3.5139]
[1756869154710,2.30564182,4332.8,4332.7,0.3061]
[1756869154911,2.30564182,4332.8,4332.2,41.1061]
[1756869155205,1.08340632,4332.7,4332.1,3.5139]
[1756869155411,1.23296009,4332.4,4332.1,3.2078]
[1756869155610,1.23296009,4332.4,4332.2,0.3061]
[1756869155611,1.08340632,4332.3,4332.2,0.3061]
[1756869155919,0.79230632,4332.3,4332.2,0.3061]
[1756869158819,0.79230632,4332.3,4332.2,0.7044]
[1756869159011,0.99990632,4332.3,4332.2,0.7044]
[1756869159215,1.19780632,4332.3,4332.2,0.7044]
[1756869159521,0.99990632,4332.3,4332.2,0.7044]
[1756869159708,0.79230632,4332.3,4332.2,0.7044]
[1756869161820,0.316,4332.2,4332.1,3.2078]
[1756869162025,1.52370632,4332.2,4332.1,3.2078]
[1756869162513,1.20770632,4332.2,4332.1,3.715]
[1756869162718,1.44570632,4332.2,4332.1,3.9235]
[1756869162914,1.23420632,4332.2,4332.1,3.9235]
[1756869163212,1.44570632,4332.2,4332.1,3.9235]
[1756869163823,1.20770632,4332.2,4332.1,3.9235]
[1756869164026,1.44570632,4332.2,4332.1,3.9235]
[1756869164624,1.23420632,4332.2,4332.1,3.9235]
[1756869164927,1.76170632,4332.2,4332.1,3.2078]
[1756869165820,1.76170632,4332.2,4331.6,3.2078]
[1756869166024,1.20770632,4332.1,4332.0,0.5072]
[1756869166226,1.52370632,4332.1,4332.0,0.5072]
[1756869166525,0.4154,4331.8,4331.7,0.5072]
[1756869166717,0.94231125,4331.8,4331.7,0.5072]
[1756869166917,0.21091125,4331.8,4331.7,0.7157]
[1756869168421,0.41481125,4331.8,4331.7,0.7157]
[1756869168626,0.4154,4331.8,4331.7,0.5072]
[1756869168828,0.316,4332.2,4331.8,0.3018]
[1756869169027,0.99341816,4332.1,4332.0,0.2054]
[1756869169228,1.30941816,4332.1,4332.0,0.2054]
[1756869169429,0.7314,4332.1,4332.0,0.2054]
[1756869169625,0.316,4332.0,4331.6,3.5096]
[1756869169928,0.7314,4331.7,4331.6,3.5096]
[1756869170127,0.7314,4331.7,4331.6,0.5072]
[1756869170323,0.4154,4331.7,4331.6,3.9235]
[1756869170525,0.4419,4332.1,4332.0,0.4139]
[1756869170823,0.4154,4331.8,4331.7,0.3018]
[1756869171131,0.7314,4331.8,4331.7,0.3018]
[1756869171315,0.4154,4331.8,4331.0,40.9166]
[1756869171521,0.2039,4331.2,4331.1,0.7157]
[1756869172128,0.316,4331.7,4331.1,0.4139]
[1756869172330,0.316,4331.9,4331.1,0.3018]
[1756869173235,0.316,4331.1,4331.0,3.2078]
[1756869173531,0.239,4331.3,4330.6,0.3018]
[1756869173726,0.6544,4331.3,4331.2,0.7157]
[1756869174925,0.2039,4331.3,4331.2,0.7157]
[1756869175128,0.7314,4331.3,4331.2,0.2054]
[1756869175329,0.7314,4331.3,4331.2,0.5072]
[1756869175530,0.7314,4331.3,4331.2,0.7157]
[1756869175829,0.4154,4331.3,4331.2,0.7157]
[1756869176336,0.239,4331.3,4331.2,0.7157]
[1756869176532,3.2078,4331.7,4331.3,0.3018]
[1756869176731,0.4429,4331.4,4331.3,0.7157]
[1756869176935,0.6544,4331.4,4331.3,0.7157]
[1756869177231,0.239,4331.6,4331.5,0.1169]
[1756869177434,0.239,4331.6,4331.5,0.8326]
[1756869178434,0.3544,4331.8,4331.7,0.4139]
[1756869178631,0.3544,4331.8,4331.7,0.7157]
[1756869179727,1.0858,4331.8,4331.7,0.3018]
[1756869179936,0.5308,4331.8,4331.7,0.7157]
[1756869180128,0.5583,4331.8,4331.7,0.7157]
[1756869180526,0.1154,4331.8,4331.7,0.7157]
[1756869180723,0.1154,4331.8,4331.7,4.7157]
[1756869182135,0.1154,4331.8,4331.7,4.94655]
[1756869182330,0.1154,4331.8,4331.7,45.74655]
[1756869182726,0.1154,4331.8,4331.7,45.5157]
[1756869183135,0.1154,4331.8,4331.7,41.7547]
[1756869183829,0.3193,4331.8,4331.7,0.7157]
[1756869184026,0.5308,4331.8,4331.7,0.7157]
[1756869184432,0.4154,4331.8,4331.7,0.7157]
[1756869185238,0.2039,4331.8,4331.7,0.7157]
[1756869185432,0.316,4332.3,4331.8,0.3018]
[1756869185640,0.9704,4332.3,4332.2,0.2054]
[1756869185838,0.9704,4332.3,4332.2,0.5072]
[1756869186132,0.9704,4332.3,4331.6,0.3018]
[1756869188742,0.6534,4332.2,4332.1,0.2054]
[1756869189040,0.9694,4332.2,4332.1,0.5072]
[1756869189241,0.6534,4332.2,4332.1,0.7157]
[1756869189641,0.4154,4332.2,4332.1,0.7157]
[1756869189844,0.2039,4332.2,4332.1,0.4139]
[1756869190038,0.238,4332.3,4332.1,0.4139]
[1756869190639,0.6534,4332.3,4332.2,0.7157]
[1756869190938,0.4154,4331.7,4331.6,0.7157]
[1756869191844,0.7048,4331.7,4331.6,0.5072]
[1756869192737,0.7048,4331.7,4331.6,0.2073]
[1756869193745,0.7048,4331.7,4331.6,0.5115]
[1756869194940,0.7048,4331.7,4331.1,41.1042]
[1756869195141,0.3978,4331.2,4331.1,0.5115]
[1756869195444,0.6872,4331.2,4331.1,0.5115]
[1756869195637,0.3978,4331.2,4331.1,0.7129]
[1756869195837,0.2039,4331.2,4331.1,0.7129]
[1756869196542,0.3978,4331.2,4331.1,0.7129]
[1756869197737,0.238,4331.5,4331.2,0.3042]
[1756869197934,0.238,4331.5,4331.4,0.7129]
[1756869198143,3.895,4332.0,4331.9,0.5115]
[1756869198339,4.71141297,4332.0,4331.5,0.1195]
[1756869198538,0.2894,4331.9,4331.5,0.3042]
[1756869198744,0.3978,4331.2,4331.1,0.2073]
[1756869198938,0.6872,4331.2,4331.1,0.5115]
[1756869199242,0.6872,4331.1,4331.0,3.2078]
[1756869199442,0.6872,4331.1,4330.6,0.3042]
[1756869199443,0.6358,4331.1,4330.6,0.3042]
[1756869199738,0.3978,4331.0,4330.9,0.7129]
[1756869199945,0.6872,4331.0,4330.9,0.7129]
[1756869201940,0.6872,4331.0,4330.9,0.5115]
[1756869202350,0.6872,4331.0,4330.9,0.7129]
[1756869203746,0.3978,4331.0,4330.9,0.7129]
[1756869205547,1.49296534,4331.0,4330.9,0.7129]
[1756869205750,0.1154,4331.2,4331.0,0.1195]
[1756869205940,0.3534,4331.2,4331.1,0.7129]
[1756869206140,0.5573,4331.2,4331.1,0.7129]
[1756869207246,0.7512,4331.2,4331.1,0.7129]
[1756869208449,0.5573,4331.2,4331.1,0.7129]
[1756869208749,0.3534,4331.2,4331.1,0.7129]
[1756869208950,0.5573,4331.2,4331.1,0.7129]
[1756869209244,0.1154,4331.2,4331.1,0.7129]
[1756869209449,0.8026,4331.2,4331.1,0.7129]
[1756869209651,0.8026,4331.2,4331.1,0.5115]
[1756869209839,0.8026,4331.2,4330.6,0.3042]
[1756869210039,1.29906534,4330.7,4330.6,0.7129]
[1756869210238,1.29906534,4330.7,4330.6,0.5115]
[1756869210239,1.78236534,4330.7,4330.6,0.5115]
[1756869210646,0.3978,4330.5,4330.4,0.5115]
[1756869210848,1.78236534,4330.5,4330.4,0.5115]
[1756869211058,2.02036534,4330.5,4330.4,0.7129]
[1756869211449,2.02036534,4330.5,4330.3,3.2078]
[1756869211752,0.6872,4330.4,4330.3,3.512]
[1756869211946,0.6872,4330.4,4330.3,3.7193]
[1756869212548,0.3978,4330.4,4330.3,3.9207]
[1756869213059,1.49296534,4330.4,4330.3,3.9207]
[1756869213251,1.78236534,4330.4,4330.3,3.9207]
[1756869213645,1.78236534,4330.4,4330.3,3.7193]
[1756869214655,1.78236534,4330.4,4330.3,3.512]
[1756869214844,1.78236534,4330.4,4330.3,3.9207]
[1756869215049,1.29906534,4330.4,4330.3,3.9207]
[1756869215252,1.33216534,4330.4,4330.3,3.9207]
[1756869215955,1.09516534,4330.7,4330.3,3.6165]
[1756869216154,0.237,4330.6,4330.5,0.8324]
[1756869216954,1.33216534,4330.7,4330.6,0.7129]
[1756869217553,0.2894,4331.3,4330.6,0.4087]
[1756869217759,30.489,4331.6,4331.0,0.5115]
[1756869217760,0.9242,4331.1,4331.0,0.5115]
[1756869218060,2.01936534,4331.1,4330.6,0.3042]
[1756869218256,1.49296534,4330.7,4330.6,0.7129]
[1756869220558,1.78236534,4330.7,4330.6,0.7129]
[1756869221755,1.49296534,4330.7,4330.6,0.7129]
[1756869222352,1.80686534,4330.7,4330.6,0.7129]
[1756869223556,1.49296534,4330.7,4330.6,0.7129]
[1756869224150,0.237,4330.8,4330.7,0.7]
[1756869224350,2.06126534,4330.8,4330.7,0.7]
[1756869225257,2.06126534,4330.8,4330.7,0.3065]
[1756869225456,0.4152,4330.6,4330.5,0.2003]
[1756869225653,0.7291,4330.6,4330.5,0.5068]
[1756869226458,0.7291,4330.6,4330.5,0.3065]
[1756869226655,0.9661,4330.6,4330.5,0.5068]
[1756869228048,0.9661,4330.6,4330.5,0.3065]
[1756869228253,0.237,4330.6,4330.3,3.5143]
[1756869228560,1.82426534,4330.4,4330.3,3.7146]
[1756869229061,0.7291,4330.4,4330.3,3.7146]
[1756869229357,1.82426534,4330.4,4330.3,3.7146]
[1756869230362,0.3139,4330.3,4330.2,0.2003]
[1756869230561,0.7291,4330.3,4330.2,0.5068]
[1756869232163,0.4152,4330.3,4329.6,3.5143]
[1756869232357,1.82426534,4329.7,4329.6,3.9078]
[1756869232557,2.06126534,4329.7,4329.6,3.9078]
[1756869232953,2.06126534,4329.7,4329.6,3.7146]
[1756869234067,1.82426534,4329.7,4329.6,3.7146]
[1756869234362,2.06126534,4329.7,4329.6,3.7146]
[1756869234862,0.4152,4329.2,4329.1,3.5143]
[1756869235062,2.06126534,4329.2,4329.1,3.7146]
[1756869235259,0.21,4328.7,4328.6,3.6013]
[1756869235456,0.3139,4329.1,4328.6,3.6013]
[1756869235457,0.21,4329.1,4329.0,0.51]
[1756869235763,0.447,4329.1,4329.0,0.51]
[1756869235968,1.09516534,4329.2,4329.0,0.8165]
[1756869236165,0.237,4329.1,4329.0,0.51]
[1756869236360,1.09516534,4329.2,4329.0,0.51]
[1756869236563,1.09516534,4329.5,4329.1,3.5143]
[1756869236763,0.3139,4329.4,4329.1,3.2078]
[1756869237058,0.7291,4329.4,4329.3,0.7]
[1756869237262,0.4152,4329.4,4329.3,0.7]
[1756869237468,0.7291,4329.4,4329.3,0.3065]
[1756869238169,1.82426534,4329.4,4329.1,0.3065]
[1756869238373,0.7291,4329.1,4329.0,0.51]
[1756869239071,0.4152,4329.1,4329.0,0.8165]
[1756869239371,0.6522,4329.1,4329.0,0.8165]
[1756869239667,0.6522,4329.1,4328.2,0.237]
[1756869239668,0.4152,4328.5,4328.4,0.2003]
[1756869239866,1.74836534,4328.5,4328.4,0.7]
[1756869240368,2.06226534,4328.5,4328.4,0.5068]
[1756869240670,1.74836534,4328.5,4328.1,0.3065]
[1756869240870,1.82426534,4328.2,4328.1,0.5068]
[1756869241668,1.82426534,4328.2,4328.1,0.3065]
[1756869242064,2.06226534,4328.2,4328.1,0.3065]
[1756869242668,0.7291,4327.9,4327.8,0.7]
[1756869242867,1.82426534,4327.9,4327.8,0.3065]
[1756869243062,0.7291,4327.8,4327.7,3.7146]
[1756869243873,0.7291,4327.8,4327.7,3.9078]
[1756869243874,0.6532,4327.8,4327.7,3.9078]
[1756869244271,0.6532,4327.8,4327.5,0.1165]
[1756869244475,0.7291,4327.7,4327.6,2.4940217]
[1756869244877,0.6532,4327.7,4327.6,2.6872217]
[1756869245072,0.9671,4327.7,4327.6,2.6872217]
[1756869245474,2.30711834,4327.7,4327.6,1.9872217]
[1756869245870,2.06911834,4327.7,4327.6,2.6872217]
[1756869246075,2.30711834,4327.7,4327.6,2.4940217]
[1756869246776,2.30711834,4327.7,4327.6,1.9872217]
[1756869247474,5.27691834,4327.7,4327.6,1.9872217]
[1756869247779,5.51491834,4327.7,4327.6,1.9872217]
[1756869248076,0.7291,4326.8,4326.7,3.5143]
[1756869248379,2.30711834,4326.8,4326.7,3.9078]
[1756869248572,2.30711834,4326.8,4326.7,3.5143]
[1756869248877,0.4152,4326.4,4326.3,0.7]
[1756869249374,2.30811834,4326.4,4326.3,0.7]
[1756869249678,2.30811834,4326.4,4325.5,0.1165]
[1756869249679,3.4158129,4326.4,4325.8,0.3065]
[1756869249878,3.4158129,4326.4,4325.8,0.4997]
[1756869249879,1.34001834,4325.9,4325.8,0.4997]
[1756869250173,0.239,4326.4,4326.3,0.3935]
[1756869250379,3.2078,4326.5,4326.3,0.3935]
[1756869250675,30.6091,4327.5,4327.3,0.7]
[1756869250676,0.5239,4327.4,4327.3,0.7]
[1756869250970,0.3139,4327.3,4326.5,0.1165]
[1756869251172,1.34001834,4327.1,4327.0,0.8165]
[1756869251771,0.5081,4327.4,4327.3,0.4031]
[1756869251966,2.28501834,4327.4,4327.3,0.7201]
[1756869252169,1.55291834,4327.4,4327.3,0.7201]
[1756869252477,2.08711834,4327.4,4327.3,0.7201]
[1756869253174,1.84811834,4327.4,4327.3,0.7201]
[1756869253377,2.08711834,4327.4,4327.3,0.7201]
[1756869253885,31.84501834,4327.5,4327.3,0.4031]
[1756869254074,31.84501834,4327.5,4327.4,0.7201]
[1756869254379,32.08401834,4327.5,4327.4,0.7201]
[1756869254579,32.29691834,4327.5,4327.4,0.7201]
[1756869255171,30.744,4327.5,4327.4,0.7201]
[1756869255377,30.505,4327.5,4327.4,0.7201]
[1756869255682,30.744,4327.5,4327.4,0.7201]
[1756869256282,2.0,4327.7,4327.6,0.7201]
[1756869256577,2.239,4327.7,4327.6,0.7201]
[1756869257080,2.239,4327.7,4327.6,3.9279]
[1756869257280,2.0,4327.7,4327.6,3.9279]
[1756869257477,2.239,4327.7,4327.6,3.9279]
[1756869257671,2.0,4327.7,4327.6,3.9279]
[1756869259077,2.0,4327.7,4327.6,7.9279]
[1756869260671,2.0,4327.7,4327.6,48.7279]
[1756869264275,2.0,4327.7,4327.6,54.0629]
[1756869264679,0.1155,4327.9,4327.6,54.0629]
[1756869264880,0.2952,4329.4,4329.0,0.8387]
[1756869265089,0.238,4329.2,4329.0,0.8387]
[1756869266786,0.2952,4329.4,4329.0,0.8387]
[1756869266988,3.7159,4329.1,4329.0,0.8387]
[1756869267189,3.9138,4329.1,4329.0,0.8387]
[1756869267385,0.706,4328.7,4328.6,3.2078]
[1756869267582,2.28401834,4328.7,4328.6,3.2078]
[1756869267984,0.1245,4328.5,4328.1,3.5248]
[1756869268186,0.706,4328.2,4328.1,3.731]
[1756869268381,0.706,4328.2,4328.1,3.9279]
[1756869269397,2.04601834,4328.2,4327.5,0.4356]
[1756869269598,0.2129,4327.7,4327.6,2.1934217]
[1756869269799,0.5081,4327.7,4327.6,2.3903217]
[1756869270193,0.5081,4327.7,4327.6,2.7073217]
[1756869270688,0.2129,4327.7,4327.6,2.7073217]
[1756869271602,0.2952,4328.0,4327.6,2.3903217]
[1756869271895,0.5081,4328.0,4327.9,3.9279]
[1756869273901,0.706,4328.0,4327.9,3.9279]
[1756869274999,0.8305,4328.0,4327.9,3.5248]
[1756869275196,0.8305,4328.0,4327.9,3.2078]
[1756869275402,0.8305,4328.0,4327.9,3.731]
[1756869275600,0.706,4328.0,4327.9,3.9279]
[1756869276302,0.2129,4328.1,4328.0,0.4356]
[1756869276506,0.5081,4328.1,4328.0,0.8387]
[1756869276707,0.706,4328.1,4328.0,0.8387]
[1756869276907,1.63521834,4328.4,4328.0,0.8387]
[1756869277206,0.2129,4328.2,4328.1,0.7201]
[1756869277397,0.5081,4328.2,4328.1,0.7201]
[1756869277602,0.706,4328.2,4328.1,0.7201]
[1756869277995,0.706,4327.7,4327.6,1.9872217]
[1756869278194,0.2952,4327.6,4327.0,3.2078]
[1756869278396,2.04601834,4327.6,4327.5,0.5232]
[1756869278600,2.28401834,4327.6,4327.5,0.7201]
[1756869279502,0.706,4327.6,4327.5,0.7201]
[1756869279706,0.944,4327.6,4327.5,0.7201]
[1756869279908,0.238,4327.6,4327.5,0.8387]
[1756869280507,0.4509,4327.6,4327.5,0.8387]
[1756869281806,0.9449,4327.6,4327.5,0.8387]
[1756869282414,0.9449,4327.6,4327.5,0.7201]
[1756869282608,0.7069,4327.6,4327.5,0.7201]
[1756869283311,0.2129,4327.6,4327.5,0.841]
[1756869283514,0.4509,4327.6,4327.5,0.841]
[1756869283810,0.238,4327.6,4327.5,0.8184]
[1756869284200,2.0,4327.7,4327.6,0.6914]
[1756869286611,2.0,4327.7,4327.6,4.6914]
[1756869287307,2.0,4327.7,4327.6,45.4914]
[1756869288718,1.54191834,4329.0,4328.9,0.397]
[1756869288915,2.27391834,4329.0,4328.9,0.6914]
[1756869289115,2.39581834,4329.0,4328.9,0.6914]
[1756869289717,5.69991834,4329.0,4328.4,3.2078]
[1756869289917,5.69991834,4329.0,4328.4,3.6955]
[1756869289918,0.8178,4328.5,4328.4,3.6955]
[1756869290215,0.6959,4328.5,4328.4,3.8992]
[1756869290410,0.6959,4328.5,4328.4,0.6914]
[1756869290411,0.8178,4328.5,4328.4,0.6914]
[1756869291007,0.8178,4328.5,4327.9,3.2078]
[1756869291212,0.2902,4328.4,4327.9,3.5022]
[1756869291405,0.4921,4328.0,4327.9,3.8992]
[1756869291605,0.8178,4328.0,4327.6,42.7872217]
[1756869291811,0.2902,4328.2,4327.7,0.397]
[1756869292112,0.2902,4328.2,4327.6,1.9872217]
[1756869292113,0.6959,4328.2,4328.1,0.6914]
[1756869292416,0.1219,4328.0,4327.9,3.2078]
[1756869292604,0.1219,4328.0,4327.6,1.9872217]
[1756869292808,0.2902,4327.9,4327.6,2.3842217]
[1756869293209,1.34001834,4328.4,4327.7,0.2944]
[1756869293210,0.238,4328.3,4327.7,0.2944]
[1756869293409,0.6437,4328.3,4328.2,0.1933]
[1756869293616,0.9339,4328.3,4328.2,0.1933]
[1756869293816,0.6959,4328.3,4328.2,0.6914]
[1756869294019,0.2019,4328.3,4328.2,0.6914]
[1756869295021,0.6959,4328.3,4328.2,0.6914]
[1756869295225,0.6959,4328.3,4328.2,0.1933]
[1756869295612,0.2902,4328.2,4327.9,3.5022]
[1756869295916,0.4057,4328.0,4327.9,3.8992]
[1756869296121,0.6959,4328.0,4327.9,3.8992]
[1756869296819,0.4921,4328.0,4327.9,3.8992]
[1756869298220,0.6959,4328.0,4327.9,3.8992]
[1756869298410,0.8178,4328.0,4327.9,3.8992]
[1756869298816,0.6959,4328.0,4327.9,3.8992]
[1756869300010,0.6491,4328.5,4327.9,3.6048]
[1756869300218,0.2902,4329.3,4328.6,0.2944]
[1756869300524,0.6959,4329.2,4329.1,0.6914]
[1756869300724,0.1219,4329.0,4328.4,0.238]
[1756869300917,0.8178,4328.5,4328.4,0.1933]
[1756869302021,0.6959,4328.5,4328.4,0.6914]
[1756869302222,0.8178,4328.5,4328.4,0.6914]
[1756869303518,3.498,4329.4,4328.9,0.6914]
[1756869303718,0.6959,4329.3,4329.2,0.6914]
[1756869304026,0.6959,4329.3,4329.2,0.1933]
[1756869305426,3.2078,4329.9,4329.8,0.6914]
[1756869305427,0.4921,4329.9,4329.8,0.6914]
[1756869305631,0.6959,4329.9,4329.8,0.6914]
[1756869306235,0.1219,4330.5,4329.8,0.397]
[1756869306525,0.1219,4330.5,4330.4,0.4877]
[1756869306526,0.5276,4330.5,4330.4,0.4877]
[1756869306731,0.4057,4330.5,4330.4,0.6914]
[1756869306933,0.5276,4330.5,4330.4,0.6914]
[1756869307129,0.8178,4330.5,4330.4,0.397]
[1756869307326,0.8178,4330.5,4330.4,0.1933]
[1756869307526,0.2902,4330.4,4329.7,3.5022]
[1756869307726,0.6959,4329.8,4329.7,3.6955]
[1756869307931,0.6959,4329.8,4329.7,3.4011]
[1756869308825,0.6959,4329.2,4328.6,0.2944]
[1756869309326,0.2902,4329.5,4329.2,0.2944]
[1756869309534,0.6959,4329.5,4329.4,0.6914]
[1756869309831,0.8178,4329.5,4329.4,0.6914]
[1756869310336,0.6959,4329.2,4329.1,0.6914]
[1756869311338,0.6959,4329.2,4329.1,0.397]
[1756869311634,0.5112,4329.0,4328.9,3.2078]
[1756869311933,0.5112,4329.0,4328.9,3.4198]
[1756869311934,0.8026,4329.0,4328.9,3.4198]
[1756869312930,0.8026,4329.0,4328.3,0.3159]
[1756869313935,0.2914,4329.3,4329.0,0.4323]
[1756869314133,0.4857,4329.3,4329.2,0.7414]
[1756869314336,0.6785,4329.3,4329.2,0.7414]
[1756869314930,0.3871,4329.3,4329.2,0.7414]
[1756869315134,0.2914,4329.2,4329.0,0.3159]
[1756869315332,0.6785,4329.2,4329.1,0.5279]
[1756869315527,0.6785,4329.2,4329.1,0.7414]
[1756869316241,0.1943,4329.2,4329.1,0.7414]
[1756869316836,1.38743423,4329.5,4329.1,0.4255]
[1756869317038,0.1943,4329.5,4329.4,0.7414]
[1756869317242,0.1241,4330.0,4329.3,0.3159]
[1756869317541,0.1943,4329.4,4329.3,0.7414]
[1756869317840,1.09603423,4329.9,4329.3,41.2255]
[1756869318043,1.77453423,4329.9,4329.8,0.5279]
[1756869318543,1.77453423,4329.9,4329.8,0.7414]
[1756869318748,1.77453423,4329.9,4329.8,0.4255]
[1756869319245,1.77453423,4329.9,4329.8,0.212]
[1756869319944,0.2914,4329.8,4329.1,40.8]
[1756869320245,0.6785,4329.8,4329.7,0.7414]
[1756869320937,0.1943,4329.8,4329.7,0.7414]
[1756869321435,0.2914,4330.2,4329.7,0.7414]
[1756869321643,0.4857,4330.2,4330.1,0.4255]
[1756869321943,0.4857,4330.2,4330.1,0.7414]
[1756869322242,0.6785,4330.2,4330.1,0.7414]
[1756869322630,0.2914,4330.6,4330.1,0.7414]
[1756869322836,0.6785,4330.3,4330.2,0.7414]
[1756869324544,0.3871,4330.3,4330.2,0.7414]
[1756869324839,0.2914,4330.6,4330.3,0.3159]
[1756869325145,0.6785,4330.6,4330.5,0.212]
[1756869326041,0.2914,4330.2,4330.1,3.2078]
[1756869326345,0.6785,4330.2,4330.1,3.9492]
[1756869327935,1.38743423,4330.7,4330.2,0.3159]
[1756869328142,1.77453423,4330.7,4330.6,0.4255]
[1756869328343,2.01153423,4330.7,4330.6,0.7414]
[1756869329042,2.01153423,4330.7,4330.6,0.4255]
[1756869329244,2.01153423,4330.7,4330.6,0.212]
[1756869329939,0.3871,4330.4,4330.3,0.5279]
[1756869330138,0.6785,4330.4,4330.3,0.5279]
[1756869330936,0.6785,4330.4,4330.3,0.7414]
[1756869331340,0.6785,4330.4,4330.1,3.2078]
[1756869331341,0.3871,4330.2,4330.1,3.2078]
[1756869331547,0.6785,4330.2,4330.1,3.2078]
[1756869331944,0.8026,4329.5,4329.4,0.212]
[1756869332144,1.89863423,4329.5,4329.4,0.212]
[1756869332939,1.60723423,4329.5,4328.8,3.2078]
[1756869333141,0.6785,4328.9,4328.8,3.7357]
[1756869333346,0.6785,4328.9,4328.8,3.4198]
[1756869333547,0.6785,4328.9,4328.8,3.2078]
[1756869334050,0.3871,4328.9,4328.3,0.3159]
[1756869334246,0.9155,4328.8,4328.7,0.4255]
[1756869334552,0.9155,4328.8,4328.7,0.7414]
[1756869334953,0.9155,4328.8,4328.7,3.9492]
[1756869335644,0.6785,4328.8,4328.7,3.9492]
[1756869337352,0.6785,4328.8,4328.7,0.7414]
[1756869337654,1.77453423,4328.8,4328.2,3.2078]
[1756869337848,0.1943,4328.3,4328.2,3.9492]
[1756869338250,0.4857,4328.3,4328.2,3.9492]
[1756869338852,0.2914,4328.7,4328.2,3.9492]
[1756869339156,1.77453423,4328.8,4328.7,0.212]
[1756869339358,1.77453423,4328.8,4328.7,0.5279]
[1756869340048,0.6785,4328.8,4328.7,0.7414]
[1756869340261,0.9145,4328.8,4328.7,0.7414]
[1756869341269,0.6785,4328.8,4328.7,0.212]
[1756869341770,1.77453423,4328.8,4328.7,0.212]
[1756869341962,1.77453423,4328.8,4328.4,0.3159]
[1756869342564,1.48313423,4328.8,4328.2,3.2078]
[1756869342758,0.7309,4328.7,4328.6,0.1931]
[1756869343266,0.4119,4328.3,4328.2,3.2078]
[1756869343468,0.7309,4328.3,4328.2,3.2078]
[1756869343671,0.9669,4328.3,4328.2,3.2078]
[1756869344066,0.9669,4328.3,4327.7,3.2078]
[1756869344067,0.4119,4327.8,4327.7,3.2078]
[1756869344363,0.7309,4327.8,4327.7,3.4009]
[1756869344561,0.236,4327.9,4327.8,0.2989]
[1756869344766,0.236,4327.9,4327.8,0.6922]
[1756869344958,1.09603423,4328.2,4327.8,0.6922]
[1756869345161,0.2108,4328.0,4327.9,0.6922]
[1756869345370,0.5298,4328.0,4327.9,0.6922]
[1756869345571,0.7309,4328.0,4327.9,0.6922]
[1756869345865,0.319,4327.9,4327.7,3.2078]
[1756869346070,0.7309,4327.9,4327.8,0.1931]
[1756869346468,0.7309,4327.7,4327.6,1.9872217]
[1756869348970,0.9669,4327.7,4327.6,1.9872217]
[1756869349466,0.9669,4327.7,4326.8,0.2989]
[1756869349670,0.7309,4326.9,4326.8,0.1931]
[1756869349870,0.9669,4326.9,4326.8,0.1931]
[1756869350269,0.9669,4326.9,4326.4,0.2989]
[1756869350270,0.1185,4326.5,4326.4,0.492]
[1756869350468,0.7309,4326.2,4326.1,0.492]
[1756869350773,0.9679,4326.2,4326.1,0.1931]
[1756869351868,0.9679,4326.2,4326.1,0.492]
[1756869352068,0.9679,4326.2,4326.1,0.6922]
[1756869352977,0.7309,4326.2,4326.1,0.6922]
[1756869353172,0.9679,4326.2,4326.1,0.6922]
[1756869353877,0.9679,4326.2,4325.6,0.2989]
[1756869354969,0.9679,4326.2,4326.1,0.1931]
[1756869355163,0.7309,4326.2,4326.1,0.3933]
[1756869355365,0.6479,4326.2,4326.1,0.6922]
[1756869355565,0.9669,4326.2,4326.1,0.6922]
[1756869357877,0.7309,4327.0,4326.9,0.3933]
[1756869358079,1.0854,4327.0,4326.9,0.6922]
[1756869358469,1.0854,4327.0,4326.1,0.2989]
[1756869358663,0.7309,4327.0,4326.9,0.6922]
[1756869358878,0.9679,4327.0,4326.9,0.6922]
[1756869359072,0.319,4327.4,4327.0,0.1265]
[1756869359269,0.5298,4327.4,4327.3,0.6922]
[1756869359465,0.7668,4327.4,4327.3,0.6922]
[1756869359666,0.9679,4327.4,4327.3,0.6922]
[1756869360576,0.4478,4327.4,4327.3,0.6922]
[1756869361577,0.9679,4327.4,4327.3,0.6922]